bitfinex-derivatives/quotes_BTCF0:USTF0_20250630
["timestamp","ask_amount","ask_price","bid_price","bid_amount"]
[1751311518529,0.228183,107600.0,107590.0,2.08546887]
[1751311518729,0.228183,107600.0,107590.0,2.56050085]
[1751311524426,0.228183,107600.0,107590.0,1.73438486]
[1751311524631,0.228183,107600.0,107590.0,2.32150486]
[1751311530632,0.228183,107600.0,107590.0,2.2474501]
[1751311531936,0.228183,107600.0,107590.0,2.48496609]
[1751311533734,0.228183,107600.0,107590.0,2.55902085]
[1751311535530,0.228183,107600.0,107590.0,2.54216272]
[1751311536434,0.228183,107600.0,107590.0,2.46810796]
[1751311539336,0.228183,107600.0,107590.0,2.23059197]
[1751311540540,0.228183,107600.0,107590.0,2.30464673]
[1751311540739,0.228183,107600.0,107590.0,2.06713074]
[1751311540940,0.228183,107600.0,107590.0,2.30464673]
[1751311541836,0.196083,107600.0,107590.0,2.54216272]
[1751311543542,0.196083,107600.0,107590.0,2.52356932]
[1751311545346,0.196083,107600.0,107590.0,2.51430824]
[1751311546637,0.196083,107600.0,107590.0,2.27679225]
[1751311547842,0.196083,107600.0,107590.0,2.31376669]
[1751311548646,0.196083,107600.0,107590.0,2.25830533]
[1751311548946,0.196083,107600.0,107590.0,2.02078934]
[1751311549133,0.196083,107600.0,107590.0,2.25830533]
[1751311551048,0.196083,107600.0,107590.0,2.02078934]
[1751311551239,0.196083,107600.0,107590.0,2.25830533]
[1751311551434,0.196083,107600.0,107590.0,2.02078934]
[1751311551644,0.196083,107600.0,107590.0,2.25830533]
[1751311552352,0.196083,107600.0,107590.0,2.49582132]
[1751311553453,0.196083,107600.0,107590.0,2.51430824]
[1751311557355,0.196083,107600.0,107590.0,2.51166824]
[1751311558559,0.196083,107600.0,107590.0,1.9811749]
[1751311558859,0.196083,107600.0,107590.0,2.45620688]
[1751311561453,0.196083,107600.0,107590.0,2.69372287]
[1751311561953,1.53736572,107630.0,107620.0,0.1858116]
[1751311562159,1.53736572,107630.0,107620.0,1.39164358]
[1751311562359,1.50596572,107630.0,107620.0,1.48354358]
[1751311562553,1.50596572,107630.0,107620.0,1.25498068]
[1751311562759,1.50596572,107630.0,107620.0,1.49249667]
[1751311563264,1.50596572,107630.0,107620.0,1.01746469]
[1751311563558,1.50596572,107630.0,107620.0,1.49249667]
[1751311563760,1.74348171,107630.0,107620.0,1.49249667]
[1751311564062,1.83896599,107630.0,107620.0,0.9778116]
[1751311564260,2.13978198,107630.0,107620.0,1.18522759]
[1751311564459,1.90226599,107630.0,107620.0,1.15412759]
[1751311564659,2.13978198,107630.0,107620.0,1.15412759]
[1751311564863,1.90226599,107630.0,107620.0,0.9166116]
[1751311565064,1.99734899,107630.0,107620.0,1.15412759]
[1751311565562,2.33486498,107630.0,107620.0,1.15412759]
[1751311565763,2.33986498,107630.0,107620.0,1.15412759]
[1751311566166,2.33486498,107630.0,107620.0,1.15512759]
[1751311566356,2.33486498,107630.0,107620.0,0.9176116]
[1751311566556,2.33486498,107630.0,107620.0,0.5568116]
[1751311568065,2.09734899,107630.0,107620.0,0.5568116]
[1751311568363,2.92398498,107630.0,107620.0,0.79432759]
[1751311568664,2.68646899,107630.0,107620.0,0.5568116]
[1751311568867,2.92398498,107630.0,107620.0,0.79432759]
[1751311569065,2.68646899,107630.0,107620.0,0.79432759]
[1751311569263,2.92398498,107630.0,107620.0,0.79432759]
[1751311570365,2.92398498,107630.0,107620.0,0.5568116]
[1751311570862,2.92398498,107630.0,107620.0,0.79432759]
[1751311571768,2.92398498,107630.0,107620.0,0.5568116]
[1751311571968,2.92398498,107630.0,107620.0,0.79432759]
[1751311572475,2.58646899,107630.0,107620.0,0.79432759]
[1751311572663,2.82398498,107630.0,107620.0,0.5568116]
[1751311572870,2.58646899,107630.0,107620.0,0.79432759]
[1751311573066,2.82398498,107630.0,107620.0,0.79432759]
[1751311573263,0.83837459,107630.0,107620.0,1.39264358]
[1751311573468,0.83837459,107630.0,107620.0,1.45714358]
[1751311573678,0.83837459,107630.0,107620.0,1.48994358]
[1751311573870,2.52416889,107630.0,107620.0,1.33146217]
[1751311574476,2.52416889,107630.0,107620.0,1.0149116]
[1751311574773,2.52416889,107630.0,107620.0,1.33146217]
[1751311575076,2.33877459,107630.0,107620.0,1.33146217]
[1751311576072,1.74825459,107630.0,107620.0,1.33146217]
[1751311576566,1.70104872,107630.0,107620.0,1.33146217]
[1751311577065,1.70104872,107630.0,107620.0,1.35913512]
[1751311577466,1.70104872,107630.0,107620.0,1.04258455]
[1751311577666,1.70104872,107630.0,107620.0,1.35913512]
[1751311578971,1.70104872,107630.0,107620.0,1.04258455]
[1751311579476,1.70104872,107630.0,107620.0,1.35913512]
[1751311580475,1.88684312,107630.0,107620.0,1.35913512]
[1751311580674,1.73234872,107630.0,107620.0,1.35913512]
[1751311581571,1.73234872,107630.0,107620.0,1.04258455]
[1751311581883,1.73234872,107630.0,107620.0,1.35913512]
[1751311582373,1.73234872,107630.0,107620.0,1.04258455]
[1751311582766,1.73234872,107630.0,107620.0,1.35913512]
[1751311584278,1.70104872,107630.0,107620.0,1.95585512]
[1751311584481,0.20104872,107630.0,107620.0,1.99275238]
[1751311584671,0.20104872,107630.0,107620.0,1.67620181]
[1751311584876,0.20104872,107630.0,107620.0,1.99275238]
[1751311587774,0.20104872,107630.0,107620.0,2.28935238]
[1751311588175,0.20104872,107630.0,107620.0,1.9635775]
[1751311588374,0.20104872,107630.0,107620.0,2.28012807]
[1751311588784,0.20104872,107630.0,107620.0,2.31697007]
[1751311590680,0.20104872,107630.0,107620.0,2.28012807]
[1751311591478,0.20104872,107630.0,107620.0,2.28256807]
[1751311591783,0.20104872,107630.0,107620.0,2.22722217]
[1751311592684,0.20104872,107630.0,107620.0,2.31932097]
[1751311593586,0.20104872,107630.0,107620.0,2.28248145]
[1751311593783,0.20104872,107630.0,107620.0,2.3193222]
[1751311594574,0.20232735,107630.0,107620.0,2.3193222]
[1751311594777,0.20232735,107630.0,107620.0,2.00277163]
[1751311594985,0.20232735,107630.0,107620.0,2.3193222]
[1751311599684,0.20232735,107630.0,107620.0,2.28248145]
[1751311600283,0.20232735,107630.0,107620.0,1.96593088]
[1751311600589,0.20232735,107630.0,107620.0,2.28248145]
[1751311600784,0.20232735,107630.0,107620.0,1.96593088]
[1751311600985,0.20232735,107630.0,107620.0,2.28248145]
[1751311601987,0.20232735,107630.0,107620.0,2.22722217]
[1751311602691,0.20232735,107630.0,107620.0,2.22530217]
[1751311602890,0.23272735,107630.0,107620.0,1.62806217]
[1751311603085,0.29712735,107630.0,107620.0,1.96396129]
[1751311603289,0.20232735,107630.0,107620.0,2.29890121]
[1751311603788,0.20232735,107630.0,107620.0,2.45744724]
[1751311605489,0.20232735,107630.0,107620.0,2.16084724]
[1751311605888,0.20232735,107630.0,107620.0,2.00260557]
[1751311606998,0.20232735,107630.0,107620.0,1.92892653]
[1751311607196,0.20232735,107630.0,107620.0,2.00260557]
[1751311610601,0.20232735,107630.0,107620.0,1.68611064]
[1751311610896,1.70232735,107630.0,107620.0,2.00260557]
[1751311616306,1.70232735,107630.0,107620.0,1.68611064]
[1751311616601,1.70232735,107630.0,107620.0,2.00260557]
[1751311617207,1.70232735,107630.0,107620.0,1.92892653]
[1751311617404,1.73292735,107630.0,107620.0,1.92892653]
[1751311619408,0.23292735,107630.0,107620.0,1.92892653]
[1751311619913,0.20232735,107630.0,107620.0,1.92892653]
[1751311620514,0.16234735,107630.0,107620.0,2.00260557]
[1751311620816,0.13104705,107630.0,107620.0,1.92892653]
[1751311621012,0.09325885,107630.0,107620.0,1.6862421]
[1751311621210,0.09325885,107630.0,107620.0,2.00273703]
[1751311621411,0.09325885,107630.0,107620.0,1.92892653]
[1751311621611,0.09325885,107630.0,107620.0,1.6124316]
[1751311621913,0.09325885,107630.0,107620.0,2.00272481]
[1751311622310,0.09325885,107630.0,107620.0,1.92792653]
[1751311622511,0.09325885,107630.0,107620.0,1.93392653]
[1751311623204,0.09325885,107630.0,107620.0,2.23052653]
[1751311624219,0.09325885,107630.0,107620.0,1.9140316]
[1751311624415,0.09325885,107630.0,107620.0,2.23052653]
[1751311625621,0.09325885,107630.0,107620.0,2.32262534]
[1751311627825,0.09325885,107630.0,107620.0,2.71810985]
[1751311628012,0.09325885,107630.0,107620.0,2.48078337]
[1751311628414,0.09325885,107630.0,107620.0,2.49098337]
[1751311628610,0.12455885,107630.0,107620.0,2.49098337]
[1751311629816,0.12455885,107630.0,107620.0,2.47217548]
[1751311631625,0.12455885,107630.0,107620.0,1.99752252]
[1751311631820,0.12455885,107630.0,107620.0,2.31399288]
[1751311632718,0.12455885,107630.0,107620.0,2.31355288]
[1751311633822,0.12455885,107630.0,107620.0,1.67391288]
[1751311634124,0.18945885,107630.0,107620.0,2.21577288]
[1751311634523,0.12455885,107630.0,107620.0,2.21577288]
[1751311634728,0.12455885,107630.0,107620.0,2.31067288]
[1751311636220,0.09325885,107630.0,107620.0,2.31067288]
[1751311636417,0.09325885,107630.0,107620.0,2.23694196]
[1751311638828,0.09325885,107630.0,107620.0,2.32904077]
[1751311639028,0.09325885,107630.0,107620.0,2.01257041]
[1751311639229,0.09325885,107630.0,107620.0,2.32904077]
[1751311639621,0.09325885,107630.0,107620.0,1.62778077]
[1751311639822,0.18755885,107630.0,107620.0,2.23930077]
[1751311640020,0.12385885,107630.0,107620.0,2.30020077]
[1751311640228,0.12385885,107630.0,107620.0,2.33260077]
[1751311641830,0.09325885,107630.0,107620.0,2.33260077]
[1751311644429,0.09325885,107630.0,107620.0,2.24050196]
[1751311644722,0.09325885,107630.0,107620.0,2.33260077]
[1751311649430,0.09325885,107630.0,107620.0,2.33273236]
[1751311651833,0.09325885,107630.0,107620.0,2.11670116]
[1751311652130,0.09325885,107630.0,107620.0,2.39539104]
[1751311652324,0.09325885,107630.0,107620.0,2.469182]
[1751311652928,0.09325885,107630.0,107620.0,2.39539104]
[1751311653233,0.09325885,107630.0,107620.0,2.46918868]
[1751311653431,0.09325885,107630.0,107620.0,2.7065084]
[1751311653832,0.09325885,107630.0,107620.0,2.31099283]
[1751311654735,0.09325885,107630.0,107620.0,2.23719519]
[1751311656126,0.09325885,107630.0,107620.0,1.9207516]
[1751311656734,0.09325885,107630.0,107620.0,2.23719519]
[1751311656934,0.09325885,107630.0,107620.0,2.23819519]
[1751311657234,0.09325885,107630.0,107620.0,2.33042559]
[1751311658730,0.09325885,107630.0,107620.0,2.013982]
[1751311658932,0.09325885,107630.0,107620.0,2.33042559]
[1751311662542,0.09325885,107630.0,107620.0,2.23819519]
[1751311662940,0.09325885,107630.0,107620.0,2.03382559]
[1751311664031,0.09325885,107630.0,107620.0,1.717382]
[1751311664336,0.09325885,107630.0,107620.0,2.03382559]
[1751311665139,0.09325885,107630.0,107620.0,1.717382]
[1751311665327,0.09325885,107630.0,107620.0,2.03382559]
[1751311665732,0.09325885,107630.0,107620.0,1.717382]
[1751311665939,0.09325885,107630.0,107620.0,2.03382559]
[1751311666440,0.09325885,107630.0,107620.0,1.94159519]
[1751311666642,0.09325885,107630.0,107620.0,1.6251516]
[1751311666939,0.09325885,107630.0,107620.0,2.03382559]
[1751311668139,0.09325885,107630.0,107620.0,1.94159519]
[1751311668440,0.09325885,107630.0,107620.0,2.03384258]
[1751311669443,0.09325885,107630.0,107620.0,1.33230258]
[1751311669642,0.15575885,107630.0,107620.0,1.94378258]
[1751311669942,0.12535885,107630.0,107620.0,1.65743899]
[1751311670142,0.12535885,107630.0,107620.0,1.97388258]
[1751311670546,0.12535885,107630.0,107620.0,2.03898258]
[1751311670942,0.12535885,107630.0,107620.0,2.03854258]
[1751311671645,0.12535885,107630.0,107620.0,1.50131175]
[1751311671846,0.12535885,107630.0,107620.0,1.40906436]
[1751311672046,0.18605885,107630.0,107620.0,1.98782436]
[1751311672744,0.18605885,107630.0,107620.0,1.98762436]
[1751311675745,0.18605885,107630.0,107620.0,1.06042077]
[1751311675947,0.18605885,107630.0,107620.0,1.84961519]
[1751311677035,0.68829684,107630.0,107620.0,0.81159955]
[1751311677246,0.78829684,107630.0,107620.0,0.99742305]
[1751311677444,0.68829684,107630.0,107620.0,0.97896909]
[1751311677644,0.78829684,107630.0,107620.0,0.97896909]
[1751311678350,0.79761445,107630.0,107620.0,0.97896909]
[1751311679046,0.47185325,107630.0,107620.0,0.97896909]
[1751311680650,0.37185325,107630.0,107620.0,0.97896909]
[1751311681051,0.18605885,107630.0,107620.0,0.97896909]
[1751311681239,0.37185325,107630.0,107620.0,0.97896909]
[1751311682848,0.37185325,107630.0,107620.0,0.99330551]
[1751311683849,0.18605885,107630.0,107620.0,0.99330551]
[1751311684152,0.37185335,107630.0,107620.0,0.99330551]
[1751311685353,0.37185335,107630.0,107620.0,0.97481363]
[1751311686142,0.37185335,107630.0,107620.0,1.00245737]
[1751311686651,0.12535885,107630.0,107620.0,1.31890096]
[1751311686954,0.12535885,107630.0,107620.0,1.39557819]
[1751311687155,0.18875885,107630.0,107620.0,1.3099208]
[1751311687344,0.18875885,107630.0,107620.0,0.99347721]
[1751311687543,0.18875885,107630.0,107620.0,1.0158346]
[1751311687747,0.18875885,107630.0,107620.0,1.33227819]
[1751311687954,0.37455325,107630.0,107620.0,1.33227819]
[1751311688155,0.37455325,107630.0,107620.0,1.0158346]
[1751311688344,0.37455325,107630.0,107620.0,0.98811074]
[1751311691259,0.98259325,107630.0,107620.0,0.98811074]
[1751311692150,1.08259325,107630.0,107620.0,0.98811074]
[1751311692350,1.08259325,107630.0,107620.0,0.95124523]
[1751311693957,1.39903684,107630.0,107620.0,0.95124523]
[1751311694354,1.08259325,107630.0,107620.0,0.95124523]
[1751311694659,1.39903684,107630.0,107620.0,0.95124523]
[1751311695758,1.08259325,107630.0,107620.0,0.95124523]
[1751311695960,1.39903684,107630.0,107620.0,0.95124523]
[1751311696150,1.08259325,107630.0,107620.0,0.95124523]
[1751311696356,1.39903684,107630.0,107620.0,0.95124523]
[1751311696559,1.39719684,107630.0,107620.0,0.95124523]
[1751311697762,1.31822223,107630.0,107620.0,0.95124523]
[1751311697958,1.55569121,107630.0,107620.0,0.59044523]
[1751311698151,1.74152321,107630.0,107620.0,0.59044523]
[1751311698352,1.74152321,107630.0,107620.0,0.22044523]
[1751311698557,1.99476321,107630.0,107620.0,0.22044523]
[1751311698754,2.35556321,107630.0,107620.0,0.1928117]
[1751311699062,0.1858117,107620.0,107610.0,0.71361383]
[1751311699260,0.85484966,107620.0,107610.0,1.09361383]
[1751311699660,0.38119033,107620.0,107610.0,1.09361383]
[1751311699856,0.69787357,107620.0,107610.0,1.09361383]
[1751311700264,0.78985379,107620.0,107610.0,1.09361383]
[1751311701161,0.47317055,107620.0,107610.0,0.63990113]
[1751311701355,0.78985379,107620.0,107610.0,0.63990113]
[1751311704763,0.47317055,107620.0,107610.0,0.63990113]
[1751311704963,0.78985379,107620.0,107610.0,0.63990113]
[1751311705554,0.78985379,107620.0,107610.0,0.59990113]
[1751311707064,0.47317055,107620.0,107610.0,0.59990113]
[1751311707266,0.78985379,107620.0,107610.0,0.59990113]
[1751311707461,0.78985379,107620.0,107610.0,0.63280113]
[1751311708262,0.78985379,107620.0,107610.0,0.66966664]
[1751311710066,0.47317055,107620.0,107610.0,0.66966664]
[1751311710365,0.78985379,107620.0,107610.0,0.70226664]
[1751311710560,0.72735379,107620.0,107610.0,0.70226664]
[1751311710757,0.72735379,107620.0,107610.0,0.73236664]
[1751311711668,1.58471379,107620.0,107610.0,0.73236664]
[1751311713367,1.58459379,107620.0,107610.0,0.73236664]
[1751311713970,0.72735379,107620.0,107610.0,0.73236664]
[1751311714163,1.58407379,107620.0,107610.0,0.73236664]
[1751311714469,1.26739055,107620.0,107610.0,0.73236664]
[1751311714672,1.58407379,107620.0,107610.0,0.73236664]
[1751311714871,1.94487379,107620.0,107610.0,0.59032794]
[1751311715164,0.1858289,107610.0,107600.0,0.5459415]
[1751311715469,0.1858289,107610.0,107600.0,0.22269771]
[1751311715470,1.07236164,107610.0,107600.0,0.22269771]
[1751311715770,1.07364027,107610.0,107600.0,0.22269771]
[1751311717462,0.1858462,107600.0,107590.0,0.46472901]
[1751311717663,1.24064944,107600.0,107590.0,0.27900011]
[1751311717872,1.30272807,107600.0,107590.0,0.03779492]
[1751311718066,0.1858634,107590.0,107580.0,0.31571809]
[1751311718273,1.40992268,107590.0,107580.0,0.545009]
[1751311718768,1.77200131,107590.0,107580.0,0.55416682]
[1751311719172,1.77072268,107590.0,107580.0,0.56316682]
[1751311719764,1.77072268,107590.0,107580.0,0.554009]
[1751311720166,1.64601966,107590.0,107580.0,0.554009]
[1751311720366,1.1037029,107590.0,107580.0,0.554009]
[1751311720573,1.8619429,107590.0,107580.0,0.554009]
[1751311722175,1.8639429,107590.0,107580.0,0.554009]
[1751311722466,1.9639429,107590.0,107580.0,0.554009]
[1751311725675,1.9639429,107590.0,107580.0,0.584909]
[1751311727272,1.8307429,107590.0,107580.0,0.584909]
[1751311727978,0.9725029,107590.0,107580.0,0.584909]
[1751311728178,1.8287029,107590.0,107580.0,0.584909]
[1751311728378,1.9287029,107590.0,107580.0,0.584909]
[1751311729779,1.9263029,107590.0,107580.0,0.584909]
[1751311730679,1.60961966,107590.0,107580.0,0.584909]
[1751311730881,1.9263029,107590.0,107580.0,0.584909]
[1751311735784,1.84726981,107590.0,107580.0,0.584909]
[1751311736083,1.74462981,107590.0,107580.0,0.584909]
[1751311736784,1.50697966,107590.0,107580.0,0.584909]
[1751311736977,1.74462981,107590.0,107580.0,0.584909]
[1751311737987,0.92526981,107590.0,107580.0,0.584909]
[1751311738188,1.77642981,107590.0,107580.0,0.584909]
[1751311738582,1.87642981,107590.0,107580.0,0.584909]
[1751311740093,0.32681966,107590.0,107580.0,0.82255915]
[1751311740276,1.38250981,107590.0,107580.0,1.18335915]
[1751311741092,1.38250981,107590.0,107580.0,1.19788883]
[1751311741293,0.29501966,107590.0,107580.0,1.19788883]
[1751311741486,0.53266981,107590.0,107580.0,1.18335915]
[1751311741790,1.38254981,107590.0,107580.0,1.18335915]
[1751311742296,1.38254981,107590.0,107580.0,1.19780235]
[1751311742687,1.38254981,107590.0,107580.0,0.9601522]
[1751311742886,1.48254981,107590.0,107580.0,0.9601522]
[1751311743091,1.48254981,107590.0,107580.0,0.945709]
[1751311743283,1.48254981,107590.0,107580.0,1.0154618]
[1751311743485,1.51550981,107590.0,107580.0,1.0154618]
[1751311743995,1.27785966,107590.0,107580.0,1.0154618]
[1751311744190,1.51550981,107590.0,107580.0,1.0154618]
[1751311744393,0.66566981,107590.0,107580.0,1.0154618]
[1751311744591,1.51550981,107590.0,107580.0,1.0154618]
[1751311744989,0.66566981,107590.0,107580.0,1.0154618]
[1751311745199,1.51490981,107590.0,107580.0,1.0154618]
[1751311745694,0.66566981,107590.0,107580.0,1.0154618]
[1751311745891,1.51470981,107590.0,107580.0,1.0154618]
[1751311746392,0.66566981,107590.0,107580.0,1.0154618]
[1751311746600,1.51470981,107590.0,107580.0,1.0154618]
[1751311746798,1.17705966,107590.0,107580.0,1.0154618]
[1751311747099,1.41470981,107590.0,107580.0,1.25311195]
[1751311747396,1.41442981,107590.0,107580.0,1.25311195]
[1751311748193,1.51442981,107590.0,107580.0,1.0154618]
[1751311750000,1.51406981,107590.0,107580.0,1.0154618]
[1751311750692,1.30751966,107590.0,107580.0,1.0154618]
[1751311750993,1.54516981,107590.0,107580.0,1.0154618]
[1751311751503,1.54516981,107590.0,107580.0,1.05245062]
[1751311752401,1.54516981,107590.0,107580.0,1.29010077]
[1751311752602,1.41406981,107590.0,107580.0,1.29010077]
[1751311753702,0.56566981,107590.0,107580.0,1.29010077]
[1751311753902,0.34680641,107590.0,107580.0,1.29010077]
[1751311754108,1.37982981,107590.0,107580.0,1.4907621]
[1751311754405,1.37982981,107590.0,107580.0,1.25311195]
[1751311754807,1.19360641,107590.0,107580.0,1.4907621]
[1751311754999,1.37946981,107590.0,107580.0,1.0154618]
[1751311755198,2.87946981,107590.0,107580.0,1.25311195]
[1751311755406,1.37946981,107590.0,107580.0,1.25311195]
[1751311755804,1.37946981,107590.0,107580.0,1.0154618]
[1751311755805,1.14181966,107590.0,107580.0,1.0154618]
[1751311757311,0.29501966,107590.0,107580.0,1.0154618]
[1751311757608,1.14145966,107590.0,107580.0,1.0154618]
[1751311758210,1.45825551,107590.0,107580.0,1.0154618]
[1751311758411,1.45825551,107590.0,107580.0,0.99711072]
[1751311759709,1.58965551,107590.0,107580.0,0.99711072]
[1751311759913,1.62035551,107590.0,107580.0,0.96391072]
[1751311760108,1.65325551,107590.0,107580.0,0.96391072]
[1751311760313,1.33645966,107590.0,107580.0,0.96391072]
[1751311760531,1.65325551,107590.0,107580.0,0.96391072]
[1751311761210,1.23645966,107590.0,107580.0,0.96391072]
[1751311761411,1.48965551,107590.0,107580.0,0.96391072]
[1751311761611,1.48965551,107590.0,107580.0,0.99581072]
[1751311762608,1.17285966,107590.0,107580.0,0.99581072]
[1751311762915,1.58965551,107590.0,107580.0,0.99581072]
[1751311763914,1.27285966,107590.0,107580.0,0.99581072]
[1751311764104,1.58965551,107590.0,107580.0,0.99581072]
[1751311765816,1.48965551,107590.0,107580.0,0.99581072]
[1751311766010,1.58965551,107590.0,107580.0,0.99581072]
[1751311766619,1.62185551,107590.0,107580.0,0.99581072]
[1751311766819,1.30505966,107590.0,107580.0,0.99581072]
[1751311767016,1.62185551,107590.0,107580.0,0.99581072]
[1751311768525,1.62185551,107590.0,107580.0,1.05114486]
[1751311769018,1.30505966,107590.0,107580.0,1.05114486]
[1751311769218,1.62185551,107590.0,107580.0,1.05114486]
[1751311769613,1.62185551,107590.0,107580.0,1.0141618]
[1751311773815,1.62185551,107590.0,107580.0,0.99974314]
[1751311774016,1.62185551,107590.0,107580.0,0.96784314]
[1751311774220,1.65315551,107590.0,107580.0,0.96784314]
[1751311775529,1.55315551,107590.0,107580.0,0.96784314]
[1751311775720,1.65315551,107590.0,107580.0,0.96784314]
[1751311775926,1.57400373,107590.0,107580.0,0.96784314]
[1751311777026,1.57400373,107590.0,107580.0,0.98231373]
[1751311777227,1.57400373,107590.0,107580.0,0.96784314]
[1751311778124,1.47400373,107590.0,107580.0,0.96784314]
[1751311778327,1.57400373,107590.0,107580.0,0.96784314]
[1751311783529,1.57036373,107590.0,107580.0,0.96784314]
[1751311784226,0.48991966,107590.0,107580.0,0.96784314]
[1751311784425,0.48991966,107590.0,107580.0,1.20548721]
[1751311784426,1.22096033,107590.0,107580.0,1.20548721]
[1751311784624,1.40682363,107590.0,107580.0,1.23618721]
[1751311785930,0.56406363,107590.0,107580.0,1.23618721]
[1751311786138,1.40682363,107590.0,107580.0,1.23618721]
[1751311787334,0.56406363,107590.0,107580.0,1.23618721]
[1751311787729,1.40682363,107590.0,107580.0,1.23618721]
[1751311788935,0.56406363,107590.0,107580.0,1.23618721]
[1751311789130,1.40682363,107590.0,107580.0,1.23618721]
[1751311790033,1.37542363,107590.0,107580.0,1.23618721]
[1751311790333,1.13773956,107590.0,107580.0,0.99854314]
[1751311790637,1.13773956,107590.0,107580.0,1.23618721]
[1751311790638,1.37538363,107590.0,107580.0,1.23618721]
[1751311792734,1.13773956,107590.0,107580.0,1.23618721]
[1751311792933,1.37538363,107590.0,107580.0,1.23618721]
[1751311794930,1.37538363,107590.0,107580.0,0.99854314]
[1751311795229,1.37450363,107590.0,107580.0,1.23618721]
[1751311796040,1.37450363,107590.0,107580.0,0.99854314]
[1751311796334,1.37450363,107590.0,107580.0,1.23618721]
[1751311797136,1.13685956,107590.0,107580.0,1.23618721]
[1751311797337,0.53266363,107590.0,107580.0,1.23618721]
[1751311797534,1.37446363,107590.0,107580.0,1.23618721]
[1751311798932,0.53266363,107590.0,107580.0,1.23618721]
[1751311799431,1.37442363,107590.0,107580.0,1.23618721]
[1751311800733,1.13677956,107590.0,107580.0,1.23618721]
[1751311800934,1.37438363,107590.0,107580.0,1.23618721]
[1751311801332,1.18852033,107590.0,107580.0,1.23618721]
[1751311801533,1.37438363,107590.0,107580.0,1.23618721]
[1751311801734,0.53266363,107590.0,107580.0,1.23618721]
[1751311802034,0.95087626,107590.0,107580.0,1.23618721]
[1751311802434,1.18848033,107590.0,107580.0,1.23618721]
[1751311802842,0.10915626,107590.0,107580.0,1.23618721]
[1751311803042,1.37434363,107590.0,107580.0,0.943209]
[1751311803242,1.13669956,107590.0,107580.0,0.943209]
[1751311803537,1.37434363,107590.0,107580.0,0.99871761]
[1751311803843,1.13669956,107590.0,107580.0,0.99871761]
[1751311804037,1.37434363,107590.0,107580.0,0.99871761]
[1751311804432,1.7119877,107590.0,107580.0,0.81118921]
[1751311804637,1.8051877,107590.0,107580.0,0.81118921]
[1751311805344,1.8051877,107590.0,107580.0,0.64820174]
[1751311805738,0.0464711,107580.0,107560.0,0.71436052]
[1751311805934,0.98584337,107580.0,107570.0,0.05550625]
[1751311806237,0.1858979,107570.0,107560.0,0.27978277]
[1751311806438,0.36234068,107570.0,107560.0,0.27978277]
[1751311806636,0.36234068,107570.0,107560.0,0.23330567]
[1751311807031,0.83762882,107570.0,107560.0,0.27405995]
[1751311807231,0.36234068,107570.0,107560.0,0.27405995]
[1751311807439,0.83762882,107570.0,107560.0,0.27405995]
[1751311808537,0.84681247,107570.0,107560.0,0.24630567]
[1751311809038,0.84681247,107570.0,107560.0,0.23330567]
[1751311809232,0.37152433,107570.0,107560.0,0.24230567]
[1751311809437,0.84681247,107570.0,107560.0,0.24230567]
[1751311810339,1.29959269,107570.0,107560.0,0.19584477]
[1751311815447,0.82430455,107570.0,107560.0,0.19584477]
[1751311815840,1.29959269,107570.0,107560.0,0.19584477]
[1751311817146,0.82430455,107570.0,107560.0,0.19584477]
[1751311817347,1.29959269,107570.0,107560.0,0.19584477]
[1751311817540,1.33009269,107570.0,107560.0,0.19584477]
[1751311818937,2.13369269,107570.0,107560.0,0.00992967]
[1751311819340,0.1859151,107560.0,107550.0,0.02775428]
[1751311819644,0.1859324,107550.0,107540.0,0.26010701]
[1751311819841,0.86805152,107550.0,107540.0,0.26010701]
[1751311820040,1.22885152,107550.0,107540.0,0.26010701]
[1751311820241,1.32083174,107550.0,107540.0,0.26010701]
[1751311820441,2.16519174,107550.0,107540.0,0.26010701]
[1751311820647,2.16535174,107550.0,107540.0,0.26010701]
[1751311821040,2.16535174,107550.0,107540.0,0.2324247]
[1751311821245,1.6900636,107550.0,107540.0,0.2324247]
[1751311821453,2.16535174,107550.0,107540.0,0.2324247]
[1751311821642,1.32083174,107550.0,107540.0,0.2324247]
[1751311821843,2.16555174,107550.0,107540.0,0.2324247]
[1751311822043,0.1859497,107540.0,107530.0,0.71935183]
[1751311822253,0.68353784,107540.0,107530.0,0.71935183]
[1751311822548,0.68353784,107540.0,107530.0,0.75245183]
[1751311823250,0.68453784,107540.0,107530.0,0.75945183]
[1751311823949,0.2092497,107540.0,107530.0,0.75945183]
[1751311824147,0.68453784,107540.0,107530.0,0.76880018]
[1751311824550,1.53085784,107540.0,107530.0,0.75945183]
[1751311825144,0.30122992,107540.0,107530.0,0.75945183]
[1751311825344,1.12528992,107540.0,107530.0,1.3570959]
[1751311825545,1.36293399,107540.0,107530.0,1.3570959]
[1751311825747,1.36293399,107540.0,107530.0,1.06945183]
[1751311825948,1.36293399,107540.0,107530.0,1.3070959]
[1751311826854,1.36293399,107540.0,107530.0,1.31625283]
[1751311827055,1.36293399,107540.0,107530.0,1.00625283]
[1751311827354,1.12528992,107540.0,107530.0,1.00625283]
[1751311827749,1.12528992,107540.0,107530.0,0.76860876]
[1751311827946,1.44239468,107540.0,107530.0,0.75945183]
[1751311828346,1.54239468,107540.0,107530.0,0.75945183]
[1751311829251,1.22528992,107540.0,107530.0,0.75945183]
[1751311829454,1.44239468,107540.0,107530.0,0.75945183]
[1751311829659,1.44239468,107540.0,107530.0,0.7685337]
[1751311830047,1.12528992,107540.0,107530.0,0.75945183]
[1751311830246,1.44239468,107540.0,107530.0,0.77381819]
[1751311830550,1.44239468,107540.0,107530.0,0.75945183]
[1751311831457,1.54239468,107540.0,107530.0,0.75945183]
[1751311831849,0.27892982,107540.0,107530.0,0.75945183]
[1751311832049,1.44151458,107540.0,107530.0,0.75945183]
[1751311832357,1.44151458,107540.0,107530.0,0.7686835]
[1751311833158,1.12440982,107540.0,107530.0,0.78306467]
[1751311833453,0.41008498,107540.0,107530.0,0.78306467]
[1751311833653,1.44163458,107540.0,107530.0,0.78306467]
[1751311835759,1.44163458,107540.0,107530.0,0.82001471]
[1751311835962,1.44163458,107540.0,107530.0,0.85091471]
[1751311839466,1.44163458,107540.0,107530.0,0.90623603]
[1751311840664,1.44163458,107540.0,107530.0,0.89700436]
[1751311841866,1.44163458,107540.0,107530.0,0.90605]
[1751311842058,1.12452982,107540.0,107530.0,0.90605]
[1751311842258,1.44163458,107540.0,107530.0,0.90605]
[1751311842662,0.93674022,107540.0,107530.0,0.90605]
[1751311842860,0.27892982,107540.0,107530.0,0.90605]
[1751311843162,1.12264982,107540.0,107530.0,0.90605]
[1751311843365,0.93666022,107540.0,107530.0,0.90605]
[1751311843566,1.12260982,107540.0,107530.0,0.90605]
[1751311844253,1.25376498,107540.0,107530.0,0.90605]
[1751311845462,1.25376498,107540.0,107530.0,1.23909996]
[1751311846061,0.15896783,107550.0,107540.0,0.1859496]
[1751311846267,1.15766023,107550.0,107540.0,1.32222667]
[1751311846467,0.97172783,107550.0,107540.0,0.69512191]
[1751311846668,0.37792783,107550.0,107540.0,1.35222667]
[1751311846863,0.01503098,107550.0,107540.0,1.40754799]
[1751311847069,0.60883098,107550.0,107540.0,1.40754799]
[1751311848183,0.01503098,107550.0,107540.0,1.40754799]